[Event "Titled Tuesday Blitz October 11 Early 2022"]
[White "Silvestre, Christian"]
[Black "Minko, Dmitry"]
[WhiteFideId "30956269"]
[BlackFideId "24188468"]
[WhiteElo "2349"]
[BlackElo "2147"]
[Result "0-1"]
[Round "09"]
[TimeControl "180+1"]
[Date "2022.10.12"]
[WhiteClock "0:01:16"]
[BlackClock "0:00:33"]

1. Nf3 {[%clk 0:03:00]}  Nf6 {[%clk 0:02:58]} 2. b3 {[%clk 0:03:00]}  d6 {[%clk 0:02:50]} 3. Bb2 {[%clk 0:03:01]}  e5 {[%clk 0:02:50]} 4. d3 {[%clk 0:03:01]}  Nc6 {[%clk 0:02:50]} 5. Nbd2 {[%clk 0:03:01]}  Be6 {[%clk 0:02:48]} 6. c4 {[%clk 0:03:01]}  Qd7 {[%clk 0:02:44]} 7. e3 {[%clk 0:03:01]}  g6 {[%clk 0:02:44]} 8. Be2 {[%clk 0:03:00]}  Bg7 {[%clk 0:02:45]} 9. Ng5 {[%clk 0:02:56]}  Bg4 {[%clk 0:02:29]} 10. f3 {[%clk 0:02:47]}  Be6 {[%clk 0:02:29]} 11. Nxe6 {[%clk 0:02:47]}  fxe6 {[%clk 0:02:29]} 12. O-O {[%clk 0:02:47]}  O-O {[%clk 0:02:29]} 13. Ne4 {[%clk 0:02:46]}  Rae8 {[%clk 0:02:22]} 14. d4 {[%clk 0:02:37]}  exd4 {[%clk 0:02:22]} 15. exd4 {[%clk 0:02:37]}  Ne7 {[%clk 0:01:49]} 16. Nxf6+ {[%clk 0:02:21]}  Bxf6 {[%clk 0:01:49]} 17. Bd3 {[%clk 0:02:21]}  Nf5 {[%clk 0:01:44]} 18. Bxf5 {[%clk 0:02:20]}  exf5 {[%clk 0:01:45]} 19. Qd2 {[%clk 0:02:19]}  Re7 {[%clk 0:01:40]} 20. Rfe1 {[%clk 0:02:19]}  Rfe8 {[%clk 0:01:40]} 21. Rad1 {[%clk 0:02:09]}  d5 {[%clk 0:01:40]} 22. c5 {[%clk 0:02:06]}  c6 {[%clk 0:01:41]} 23. b4 {[%clk 0:02:01]}  Qd8 {[%clk 0:01:30]} 24. a4 {[%clk 0:01:54]}  Bg5 {[%clk 0:01:24]} 25. Qc3 {[%clk 0:01:42]}  Re2 {[%clk 0:01:15]} 26. Kf1 {[%clk 0:01:35]}  Bd2 {[%clk 0:00:54]} 27. Rxe2 {[%clk 0:01:25]}  Bxc3 {[%clk 0:00:53]} 28. Rxe8+ {[%clk 0:01:25]}  Qxe8 {[%clk 0:00:54]} 29. Bxc3 {[%clk 0:01:25]}  Qe3 {[%clk 0:00:51]} 30. Be1 {[%clk 0:01:24]}  Qb3 {[%clk 0:00:33]} 31. Ra1 {[%clk 0:01:22]}  Qc4+ {[%clk 0:00:32]} 32. Kg1 {[%clk 0:01:17]}  Qxd4+ {[%clk 0:00:33]} 33. Kf1 {[%clk 0:01:16]}  Qxa1 {[%clk 0:00:33]} 0-1


[Site "https://www.chess.com"]

[Event "Titled Tuesday Blitz October 11 Early 2022"]
[White "Skliarov, Viktor"]
[Black "Heinemann, Josefine"]
[WhiteFideId "14106736"]
[BlackFideId "12900460"]
[WhiteElo "2284"]
[BlackElo "2300"]
[Result "1-0"]
[Round "09"]
[TimeControl "180+1"]
[Date "2022.10.12"]
[WhiteClock "0:00:28"]
[BlackClock "0:00:01"]

1. e4 {[%clk 0:03:00]}  c6 {[%clk 0:02:59]} 2. d4 {[%clk 0:03:00]}  d5 {[%clk 0:02:59]} 3. e5 {[%clk 0:03:01]}  Bf5 {[%clk 0:02:56]} 4. Nf3 {[%clk 0:03:01]}  e6 {[%clk 0:02:55]} 5. Be2 {[%clk 0:03:01]}  Nd7 {[%clk 0:02:51]} 6. O-O {[%clk 0:03:01]}  h6 {[%clk 0:02:51]} 7. a4 {[%clk 0:03:00]}  a5 {[%clk 0:02:49]} 8. Na3 {[%clk 0:02:56]}  Qb6 {[%clk 0:02:45]} 9. c4 {[%clk 0:02:51]}  Ne7 {[%clk 0:02:42]} 10. c5 {[%clk 0:02:49]}  Qc7 {[%clk 0:02:41]} 11. Nc2 {[%clk 0:02:44]}  Bh7 {[%clk 0:02:39]} 12. Bf4 {[%clk 0:02:35]}  Ng6 {[%clk 0:02:26]} 13. Bg3 {[%clk 0:02:34]}  Be7 {[%clk 0:02:20]} 14. h4 {[%clk 0:02:33]}  b6 {[%clk 0:02:06]} 15. h5 {[%clk 0:02:28]}  Ngf8 {[%clk 0:02:04]} 16. cxb6 {[%clk 0:02:23]}  Qxb6 {[%clk 0:02:03]} 17. Ne3 {[%clk 0:02:04]}  Be4 {[%clk 0:01:55]} 18. Ne1 {[%clk 0:01:35]}  Nh7 {[%clk 0:01:42]} 19. f3 {[%clk 0:01:33]}  Bf5 {[%clk 0:01:41]} 20. Nxf5 {[%clk 0:01:28]}  exf5 {[%clk 0:01:42]} 21. b3 {[%clk 0:01:28]}  Ndf8 {[%clk 0:01:18]} 22. Rc1 {[%clk 0:01:03]}  Ne6 {[%clk 0:01:17]} 23. Bf2 {[%clk 0:01:03]}  Bg5 {[%clk 0:01:14]} 24. Rc3 {[%clk 0:00:58]}  O-O {[%clk 0:01:13]} 25. Nc2 {[%clk 0:00:54]}  Rac8 {[%clk 0:01:06]} 26. Bd3 {[%clk 0:00:47]}  f4 {[%clk 0:00:55]} 27. Bf5 {[%clk 0:00:39]}  Rfd8 {[%clk 0:00:48]} 28. Qd3 {[%clk 0:00:38]}  Nhf8 {[%clk 0:00:48]} 29. Rc1 {[%clk 0:00:36]}  Rc7 {[%clk 0:00:39]} 30. Na3 {[%clk 0:00:35]}  Be7 {[%clk 0:00:28]} 31. Nb1 {[%clk 0:00:34]}  Rb8 {[%clk 0:00:26]} 32. Kh2 {[%clk 0:00:32]}  Bb4 {[%clk 0:00:24]} 33. R3c2 {[%clk 0:00:33]}  Be7 {[%clk 0:00:24]} 34. Nd2 {[%clk 0:00:33]}  Bb4 {[%clk 0:00:20]} 35. Rb1 {[%clk 0:00:32]}  Rd8 {[%clk 0:00:15]} 36. Nf1 {[%clk 0:00:31]}  Be7 {[%clk 0:00:15]} 37. Kh1 {[%clk 0:00:29]}  Qb4 {[%clk 0:00:14]} 38. Nh2 {[%clk 0:00:28]}  Qb6 {[%clk 0:00:14]} 39. Ng4 {[%clk 0:00:28]}  Bg5 {[%clk 0:00:14]} 40. Kh2 {[%clk 0:00:28]}  Rb8 {[%clk 0:00:13]} 41. Rc3 {[%clk 0:00:28]}  Qb4 {[%clk 0:00:13]} 42. Qc2 {[%clk 0:00:27]}  Qa3 {[%clk 0:00:12]} 43. Rc1 {[%clk 0:00:27]}  c5 {[%clk 0:00:09]} 44. dxc5 {[%clk 0:00:27]}  d4 {[%clk 0:00:10]} 45. Rc4 {[%clk 0:00:26]}  Qxb3 {[%clk 0:00:09]} 46. Qxb3 {[%clk 0:00:27]}  Rxb3 {[%clk 0:00:10]} 47. Bxd4 {[%clk 0:00:27]}  Nxd4 {[%clk 0:00:08]} 48. Rxd4 {[%clk 0:00:28]}  Rb4 {[%clk 0:00:07]} 49. Rxb4 {[%clk 0:00:27]}  axb4 {[%clk 0:00:07]} 50. c6 {[%clk 0:00:28]}  b3 {[%clk 0:00:07]} 51. Be4 {[%clk 0:00:28]}  Ne6 {[%clk 0:00:04]} 52. Rb1 {[%clk 0:00:28]}  Nc5 {[%clk 0:00:04]} 53. Bd5 {[%clk 0:00:29]}  Nxa4 {[%clk 0:00:03]} 54. Rxb3 {[%clk 0:00:29]}  Nc5 {[%clk 0:00:04]} 55. Rb8+ {[%clk 0:00:28]}  Kh7 {[%clk 0:00:03]} 56. Nf2 {[%clk 0:00:28]}  Be7 {[%clk 0:00:04]} 57. Ne4 {[%clk 0:00:27]}  Nxe4 {[%clk 0:00:03]} 58. Bxe4+ {[%clk 0:00:27]}  g6 {[%clk 0:00:02]} 59. e6 {[%clk 0:00:28]}  Kg7 {[%clk 0:00:02]} 60. exf7 {[%clk 0:00:28]}  gxh5 {[%clk 0:00:02]} 61. Bd5 {[%clk 0:00:27]}  Bd6 {[%clk 0:00:02]} 62. Rg8+ {[%clk 0:00:27]}  Kf6 {[%clk 0:00:01]} 63. f8=Q+ {[%clk 0:00:28]} 1-0


[Site "https://www.chess.com"]

[Event "Titled Tuesday Blitz October 11 Early 2022"]
[White "Sohier, Julien"]
[Black "Gulevich, Artem"]
[WhiteFideId "645346"]
[BlackFideId "24119580"]
[WhiteElo "2209"]
[BlackElo "2218"]
[Result "0-1"]
[Round "09"]
[TimeControl "180+1"]
[Date "2022.10.12"]
[WhiteClock "0:01:26"]
[BlackClock "0:01:37"]

1. e4 {[%clk 0:03:00]}  c5 {[%clk 0:02:59]} 2. Nc3 {[%clk 0:03:00]}  Nc6 {[%clk 0:02:59]} 3. Bb5 {[%clk 0:03:00]}  g6 {[%clk 0:02:58]} 4. Bxc6 {[%clk 0:03:00]}  dxc6 {[%clk 0:02:59]} 5. f4 {[%clk 0:03:01]}  Bg7 {[%clk 0:02:59]} 6. Nf3 {[%clk 0:03:00]}  Bg4 {[%clk 0:02:58]} 7. d3 {[%clk 0:03:00]}  Nf6 {[%clk 0:02:58]} 8. O-O {[%clk 0:02:59]}  Nd7 {[%clk 0:02:54]} 9. Qe1 {[%clk 0:02:57]}  Bxf3 {[%clk 0:02:53]} 10. Rxf3 {[%clk 0:02:58]}  Nf8 {[%clk 0:02:53]} 11. f5 {[%clk 0:02:49]}  Nd7 {[%clk 0:02:51]} 12. fxg6 {[%clk 0:02:44]}  hxg6 {[%clk 0:02:49]} 13. Be3 {[%clk 0:02:27]}  Ne5 {[%clk 0:02:44]} 14. Rg3 {[%clk 0:02:26]}  b6 {[%clk 0:02:37]} 15. a4 {[%clk 0:02:23]}  a5 {[%clk 0:02:35]} 16. Ne2 {[%clk 0:02:17]}  Qd7 {[%clk 0:02:31]} 17. h3 {[%clk 0:01:51]}  O-O-O {[%clk 0:01:58]} 18. d4 {[%clk 0:01:50]}  Nc4 {[%clk 0:01:44]} 19. dxc5 {[%clk 0:01:43]}  Nxe3 {[%clk 0:01:43]} 20. Rxe3 {[%clk 0:01:42]}  Qd2 {[%clk 0:01:44]} 21. Qxd2 {[%clk 0:01:25]}  Rxd2 {[%clk 0:01:45]} 22. cxb6 {[%clk 0:01:26]}  Rxc2 {[%clk 0:01:40]} 23. b4 {[%clk 0:01:26]}  Bxa1 {[%clk 0:01:37]} 0-1


[Site "https://www.chess.com"]

[Event "Titled Tuesday Blitz October 11 Early 2022"]
[White "Tologon tegin, Semetei"]
[Black "Tarasova, Viktoriya"]
[WhiteFideId "13800574"]
[BlackFideId "4175840"]
[WhiteElo "2282"]
[BlackElo "2182"]
[Result "1-0"]
[Round "09"]
[TimeControl "180+1"]
[Date "2022.10.12"]
[WhiteClock "0:00:17"]
[BlackClock "0:00:03"]

1. e4 {[%clk 0:02:51]}  e5 {[%clk 0:02:59]} 2. Nc3 {[%clk 0:02:47]}  Nf6 {[%clk 0:02:59]} 3. f4 {[%clk 0:02:43]}  d5 {[%clk 0:02:58]} 4. fxe5 {[%clk 0:02:43]}  Nxe4 {[%clk 0:02:58]} 5. Nf3 {[%clk 0:02:44]}  Be7 {[%clk 0:02:35]} 6. Qe2 {[%clk 0:02:27]}  Nxc3 {[%clk 0:02:34]} 7. dxc3 {[%clk 0:02:27]}  c5 {[%clk 0:02:30]} 8. Bf4 {[%clk 0:02:26]}  O-O {[%clk 0:02:28]} 9. O-O-O {[%clk 0:02:26]}  Be6 {[%clk 0:02:25]} 10. Qf2 {[%clk 0:02:08]}  Nc6 {[%clk 0:02:22]} 11. h4 {[%clk 0:01:59]}  Qa5 {[%clk 0:02:20]} 12. a3 {[%clk 0:01:58]}  b5 {[%clk 0:02:08]} 13. Bd3 {[%clk 0:01:33]}  b4 {[%clk 0:01:57]} 14. axb4 {[%clk 0:01:30]}  cxb4 {[%clk 0:01:56]} 15. Ng5 {[%clk 0:01:24]}  h6 {[%clk 0:01:39]} 16. Bh7+ {[%clk 0:01:17]}  Kh8 {[%clk 0:01:38]} 17. Qg3 {[%clk 0:01:03]}  Qa1+ {[%clk 0:01:27]} 18. Kd2 {[%clk 0:01:03]}  Qxb2 {[%clk 0:01:27]} 19. Ke2 {[%clk 0:00:40]}  Qxc3 {[%clk 0:01:09]} 20. Bd3 {[%clk 0:00:38]}  Nd4+ {[%clk 0:01:06]} 21. Kf1 {[%clk 0:00:36]}  Nxc2 {[%clk 0:00:34]} 22. Kg1 {[%clk 0:00:29]}  b3 {[%clk 0:00:26]} 23. Kh2 {[%clk 0:00:21]}  a5 {[%clk 0:00:17]} 24. Nxe6 {[%clk 0:00:19]}  fxe6 {[%clk 0:00:14]} 25. Qg6 {[%clk 0:00:19]}  Rxf4 {[%clk 0:00:03]} 26. Qh7# {[%clk 0:00:17]} 1-0


[Site "https://www.chess.com"]

[Event "Titled Tuesday Blitz October 11 Early 2022"]
[White "Torres Boch, Jose Francisco"]
[Black "Manukian, Artak"]
[WhiteFideId "2278383"]
[BlackFideId "13301373"]
[WhiteElo "2073"]
[BlackElo "2515"]
[Result "0-1"]
[Round "09"]
[TimeControl "180+1"]
[Date "2022.10.12"]
[WhiteClock "0:00:40"]
[BlackClock "0:00:09"]

1. e4 {[%clk 0:03:00]}  c6 {[%clk 0:03:00]} 2. d4 {[%clk 0:03:00]}  d5 {[%clk 0:03:01]} 3. Nd2 {[%clk 0:03:00]}  dxe4 {[%clk 0:03:01]} 4. Nxe4 {[%clk 0:03:00]}  Nf6 {[%clk 0:03:01]} 5. Nxf6+ {[%clk 0:03:01]}  exf6 {[%clk 0:03:02]} 6. c3 {[%clk 0:03:01]}  Bd6 {[%clk 0:03:02]} 7. Bd3 {[%clk 0:03:01]}  Na6 {[%clk 0:02:56]} 8. Qc2 {[%clk 0:03:00]}  Nc7 {[%clk 0:02:42]} 9. Ne2 {[%clk 0:02:59]}  Nd5 {[%clk 0:02:42]} 10. Bd2 {[%clk 0:02:56]}  b5 {[%clk 0:02:39]} 11. O-O-O {[%clk 0:02:52]}  h6 {[%clk 0:02:23]} 12. Bh7 {[%clk 0:02:28]}  Be6 {[%clk 0:02:03]} 13. Ng3 {[%clk 0:02:23]}  a5 {[%clk 0:01:53]} 14. Rde1 {[%clk 0:02:22]}  Kf8 {[%clk 0:01:51]} 15. Nh5 {[%clk 0:02:14]}  Qc7 {[%clk 0:01:27]} 16. Rxe6 {[%clk 0:01:53]}  fxe6 {[%clk 0:01:26]} 17. Qg6 {[%clk 0:01:54]}  Qf7 {[%clk 0:01:18]} 18. Re1 {[%clk 0:01:38]}  Rd8 {[%clk 0:00:45]} 19. g4 {[%clk 0:01:36]}  Ne7 {[%clk 0:00:39]} 20. Qc2 {[%clk 0:01:22]}  f5 {[%clk 0:00:32]} 21. gxf5 {[%clk 0:01:21]}  Qxh5 {[%clk 0:00:28]} 22. Rxe6 {[%clk 0:01:03]}  Rxh7 {[%clk 0:00:23]} 23. f6 {[%clk 0:01:04]}  Nf5 {[%clk 0:00:18]} 24. Qe4 {[%clk 0:00:56]}  Kf7 {[%clk 0:00:16]} 25. fxg7 {[%clk 0:00:49]}  Rxg7 {[%clk 0:00:14]} 26. Qe1 {[%clk 0:00:41]}  Bxh2 {[%clk 0:00:09]} 27. Rxc6 {[%clk 0:00:40]}  Rg1 {[%clk 0:00:09]} 0-1


[Site "https://www.chess.com"]

[Event "Titled Tuesday Blitz October 11 Early 2022"]
[White "Tristan, Leonardo"]
[Black "Dehtiarov, Roman"]
[WhiteFideId "113816"]
[BlackFideId "14186640"]
[WhiteElo "2446"]
[BlackElo "2200"]
[Result "1-0"]
[Round "09"]
[TimeControl "180+1"]
[Date "2022.10.12"]
[WhiteClock "0:00:06"]
[BlackClock "0:00:05"]

1. d4 {[%clk 0:03:00]}  Nf6 {[%clk 0:02:57]} 2. Nf3 {[%clk 0:03:01]}  d5 {[%clk 0:02:56]} 3. Bf4 {[%clk 0:03:01]}  c5 {[%clk 0:02:56]} 4. e3 {[%clk 0:03:01]}  Nc6 {[%clk 0:02:57]} 5. Nbd2 {[%clk 0:03:02]}  Bg4 {[%clk 0:02:57]} 6. c3 {[%clk 0:03:02]}  e6 {[%clk 0:02:57]} 7. Qb3 {[%clk 0:03:01]}  Qc8 {[%clk 0:02:37]} 8. Nh4 {[%clk 0:03:00]}  Be7 {[%clk 0:02:34]} 9. h3 {[%clk 0:03:00]}  Bh5 {[%clk 0:02:33]} 10. g4 {[%clk 0:03:01]}  Bg6 {[%clk 0:02:34]} 11. Nxg6 {[%clk 0:03:01]}  hxg6 {[%clk 0:02:35]} 12. Bg2 {[%clk 0:03:02]}  O-O {[%clk 0:02:33]} 13. O-O {[%clk 0:02:35]}  a6 {[%clk 0:02:28]} 14. dxc5 {[%clk 0:02:32]}  Bxc5 {[%clk 0:02:21]} 15. e4 {[%clk 0:02:33]}  e5 {[%clk 0:02:14]} 16. Bg3 {[%clk 0:02:31]}  d4 {[%clk 0:02:14]} 17. Rac1 {[%clk 0:02:31]}  Ba7 {[%clk 0:02:13]} 18. cxd4 {[%clk 0:02:30]}  Bxd4 {[%clk 0:02:10]} 19. Nf3 {[%clk 0:02:15]}  Qd7 {[%clk 0:01:49]} 20. Rfd1 {[%clk 0:02:05]}  Qe7 {[%clk 0:01:09]} 21. Nxd4 {[%clk 0:02:05]}  Nxd4 {[%clk 0:01:07]} 22. Rxd4 {[%clk 0:02:05]}  exd4 {[%clk 0:01:03]} 23. e5 {[%clk 0:02:06]}  Nd7 {[%clk 0:00:58]} 24. Qxb7 {[%clk 0:02:05]}  Rab8 {[%clk 0:00:56]} 25. Qe4 {[%clk 0:02:00]}  Nc5 {[%clk 0:00:49]} 26. Qxd4 {[%clk 0:01:58]}  Ne6 {[%clk 0:00:50]} 27. Qc3 {[%clk 0:01:47]}  g5 {[%clk 0:00:46]} 28. b3 {[%clk 0:01:34]}  Rfd8 {[%clk 0:00:40]} 29. Qe3 {[%clk 0:01:32]}  Rbc8 {[%clk 0:00:39]} 30. Rxc8 {[%clk 0:01:29]}  Rxc8 {[%clk 0:00:40]} 31. Bd5 {[%clk 0:01:29]}  Qc5 {[%clk 0:00:35]} 32. Qf3 {[%clk 0:01:16]}  Qc1+ {[%clk 0:00:23]} 33. Kg2 {[%clk 0:01:16]}  Nf4+ {[%clk 0:00:23]} 34. Bxf4 {[%clk 0:01:15]}  Qxf4 {[%clk 0:00:24]} 35. Qxf4 {[%clk 0:01:08]}  gxf4 {[%clk 0:00:25]} 36. Bc4 {[%clk 0:01:09]}  Rc5 {[%clk 0:00:20]} 37. Bxa6 {[%clk 0:01:09]}  Ra5 {[%clk 0:00:18]} 38. Bc4 {[%clk 0:00:57]}  Rxa2 {[%clk 0:00:18]} 39. Kf3 {[%clk 0:00:58]}  g5 {[%clk 0:00:17]} 40. b4 {[%clk 0:00:38]}  Rc2 {[%clk 0:00:17]} 41. Bd3 {[%clk 0:00:34]}  Rb2 {[%clk 0:00:17]} 42. b5 {[%clk 0:00:35]}  Kf8 {[%clk 0:00:16]} 43. Ke4 {[%clk 0:00:18]}  Rxf2 {[%clk 0:00:14]} 44. Kf5 {[%clk 0:00:14]}  Rd2 {[%clk 0:00:11]} 45. Be4 {[%clk 0:00:14]}  Rb2 {[%clk 0:00:11]} 46. Kxg5 {[%clk 0:00:11]}  Rxb5 {[%clk 0:00:09]} 47. Kxf4 {[%clk 0:00:11]}  Kg7 {[%clk 0:00:09]} 48. h4 {[%clk 0:00:11]}  Rb2 {[%clk 0:00:08]} 49. Bf3 {[%clk 0:00:06]}  Rb4+ {[%clk 0:00:08]} 50. Kf5 {[%clk 0:00:06]}  Rb6 {[%clk 0:00:07]} 51. g5 {[%clk 0:00:06]}  Rb3 {[%clk 0:00:06]} 52. Be4 {[%clk 0:00:04]}  Rh3 {[%clk 0:00:06]} 53. Kg4 {[%clk 0:00:04]}  Re3 {[%clk 0:00:07]} 54. Kf4 {[%clk 0:00:04]}  Rh3 {[%clk 0:00:07]} 55. Kg4 {[%clk 0:00:03]}  Re3 {[%clk 0:00:07]} 56. Bf5 {[%clk 0:00:03]}  Rxe5 {[%clk 0:00:07]} 57. h5 {[%clk 0:00:04]}  Re1 {[%clk 0:00:06]} 58. Kf4 {[%clk 0:00:04]}  Rf1+ {[%clk 0:00:05]} 59. Ke5 {[%clk 0:00:05]}  Re1+ {[%clk 0:00:06]} 60. Kf4 {[%clk 0:00:06]}  Rf1+ {[%clk 0:00:02]} 61. Ke4 {[%clk 0:00:06]}  Re1+ {[%clk 0:00:03]} 62. Kd3 {[%clk 0:00:05]}  Rg1 {[%clk 0:00:04]} 63. g6 {[%clk 0:00:05]}  f6 {[%clk 0:00:03]} 64. Be4 {[%clk 0:00:03]}  Rg5 {[%clk 0:00:03]} 65. Bf3 {[%clk 0:00:04]}  Rg3 {[%clk 0:00:03]} 66. Ke3 {[%clk 0:00:04]}  Rg5 {[%clk 0:00:04]} 67. Kf4 {[%clk 0:00:04]}  Kh6 {[%clk 0:00:04]} 68. Ke4 {[%clk 0:00:03]}  Re5+ {[%clk 0:00:05]} 69. Kf4 {[%clk 0:00:04]}  Rg5 {[%clk 0:00:06]} 70. Ke4 {[%clk 0:00:04]}  Kg7 {[%clk 0:00:06]} 71. Kf4 {[%clk 0:00:04]}  Kf8 {[%clk 0:00:07]} 72. Ke4 {[%clk 0:00:03]}  Ke7 {[%clk 0:00:07]} 73. Kf4 {[%clk 0:00:03]}  Rg1 {[%clk 0:00:05]} 74. Bg4 {[%clk 0:00:04]}  Kf8 {[%clk 0:00:03]} 75. h6 {[%clk 0:00:04]}  Rh1 {[%clk 0:00:04]} 76. g7+ {[%clk 0:00:03]}  Kf7 {[%clk 0:00:02]} 77. Be6+ {[%clk 0:00:03]}  Kxe6 {[%clk 0:00:03]} 78. g8=Q+ {[%clk 0:00:04]}  Ke7 {[%clk 0:00:04]} 79. Qg7+ {[%clk 0:00:04]}  Ke6 {[%clk 0:00:04]} 80. h7 {[%clk 0:00:04]}  Rh4+ {[%clk 0:00:05]} 81. Kg3 {[%clk 0:00:05]}  Rh5 {[%clk 0:00:04]} 82. h8=Q {[%clk 0:00:05]}  Rg5+ {[%clk 0:00:04]} 83. Qxg5 {[%clk 0:00:05]}  fxg5 {[%clk 0:00:05]} 84. Kg4 {[%clk 0:00:06]}  Kd6 {[%clk 0:00:04]} 85. Kxg5 {[%clk 0:00:06]}  Kd5 {[%clk 0:00:05]} 86. Kf5 {[%clk 0:00:06]} 1-0


[Site "https://www.chess.com"]

[Event "Titled Tuesday Blitz October 11 Early 2022"]
[White "Vachylia, Andrii"]
[Black "Siva Mahadevan"]
[WhiteFideId "14137224"]
[BlackFideId "25043153"]
[WhiteElo "2318"]
[BlackElo "2249"]
[Result "1-0"]
[Round "09"]
[TimeControl "180+1"]
[Date "2022.10.11"]
[WhiteClock "0:00:16"]
[BlackClock "0:00:14"]

1. e4 {[%clk 0:02:58]}  c5 {[%clk 0:02:59]} 2. Nf3 {[%clk 0:02:57]}  Nc6 {[%clk 0:03:00]} 3. Bb5 {[%clk 0:02:57]}  Na5 {[%clk 0:03:00]} 4. d4 {[%clk 0:02:55]}  a6 {[%clk 0:03:01]} 5. Be2 {[%clk 0:02:55]}  cxd4 {[%clk 0:03:02]} 6. Nxd4 {[%clk 0:02:56]}  e6 {[%clk 0:03:02]} 7. O-O {[%clk 0:02:55]}  b5 {[%clk 0:03:02]} 8. Bf3 {[%clk 0:02:48]}  Bb7 {[%clk 0:03:02]} 9. e5 {[%clk 0:02:48]}  Qc7 {[%clk 0:03:02]} 10. Re1 {[%clk 0:02:45]}  Ne7 {[%clk 0:03:01]} 11. Nc3 {[%clk 0:02:44]}  Ng6 {[%clk 0:03:01]} 12. Bxb7 {[%clk 0:02:44]}  Qxb7 {[%clk 0:03:01]} 13. Nf3 {[%clk 0:02:30]}  Rc8 {[%clk 0:02:51]} 14. Ne4 {[%clk 0:02:28]}  Nc4 {[%clk 0:02:49]} 15. b3 {[%clk 0:02:16]}  Ncxe5 {[%clk 0:02:45]} 16. Nxe5 {[%clk 0:02:16]}  Nxe5 {[%clk 0:02:46]} 17. Bb2 {[%clk 0:02:16]}  Ng6 {[%clk 0:02:42]} 18. Bxg7 {[%clk 0:02:13]}  Qc6 {[%clk 0:02:08]} 19. Bxh8 {[%clk 0:02:05]}  Nxh8 {[%clk 0:02:09]} 20. Qd4 {[%clk 0:01:30]}  Ng6 {[%clk 0:02:07]} 21. Rad1 {[%clk 0:01:28]}  d5 {[%clk 0:01:53]} 22. Nf6+ {[%clk 0:01:16]}  Kd8 {[%clk 0:01:52]} 23. Nxh7 {[%clk 0:01:13]}  Be7 {[%clk 0:01:51]} 24. Qg7 {[%clk 0:01:03]}  Nf4 {[%clk 0:00:43]} 25. Qxf7 {[%clk 0:00:55]}  Qd6 {[%clk 0:00:42]} 26. g3 {[%clk 0:00:44]}  Nh3+ {[%clk 0:00:21]} 27. Kg2 {[%clk 0:00:43]}  Nxf2 {[%clk 0:00:18]} 28. Rxe6 {[%clk 0:00:33]}  Qd7 {[%clk 0:00:17]} 29. Rxe7 {[%clk 0:00:16]}  Qh3+ {[%clk 0:00:14]} 30. Kg1 {[%clk 0:00:16]} 1-0


[Site "https://www.chess.com"]

[Event "Titled Tuesday Blitz October 11 Early 2022"]
[White "Vokhidov, Shamsiddin"]
[Black "Duda, Jan-Krzysztof"]
[WhiteFideId "14204223"]
[BlackFideId "1170546"]
[WhiteElo "2619"]
[BlackElo "2779"]
[Result "0-1"]
[Round "09"]
[TimeControl "180+1"]
[Date "2022.10.11"]
[WhiteClock "0:00:03"]
[BlackClock "0:00:38"]

1. e4 {[%clk 0:03:00]}  e5 {[%clk 0:02:49]} 2. Nf3 {[%clk 0:03:00]}  Nc6 {[%clk 0:02:49]} 3. Bb5 {[%clk 0:03:00]}  a6 {[%clk 0:02:49]} 4. Ba4 {[%clk 0:03:01]}  Nf6 {[%clk 0:02:49]} 5. O-O {[%clk 0:03:01]}  Be7 {[%clk 0:02:49]} 6. d3 {[%clk 0:03:01]}  b5 {[%clk 0:02:47]} 7. Bb3 {[%clk 0:03:01]}  d6 {[%clk 0:02:46]} 8. a3 {[%clk 0:03:02]}  O-O {[%clk 0:02:45]} 9. Nc3 {[%clk 0:03:02]}  Nb8 {[%clk 0:02:44]} 10. Ne2 {[%clk 0:03:01]}  Nbd7 {[%clk 0:02:42]} 11. Ng3 {[%clk 0:03:01]}  Bb7 {[%clk 0:02:42]} 12. Re1 {[%clk 0:02:59]}  Re8 {[%clk 0:02:28]} 13. Ng5 {[%clk 0:02:57]}  d5 {[%clk 0:02:28]} 14. exd5 {[%clk 0:02:54]}  Bxd5 {[%clk 0:02:18]} 15. Bxd5 {[%clk 0:02:38]}  Nxd5 {[%clk 0:02:19]} 16. Qh5 {[%clk 0:02:34]}  Bxg5 {[%clk 0:02:19]} 17. Bxg5 {[%clk 0:02:34]}  Qc8 {[%clk 0:02:11]} 18. Nf5 {[%clk 0:02:29]}  f6 {[%clk 0:01:46]} 19. Bd2 {[%clk 0:02:17]}  Nf8 {[%clk 0:01:43]} 20. Re4 {[%clk 0:02:02]}  Qd7 {[%clk 0:01:35]} 21. Rae1 {[%clk 0:01:45]}  c5 {[%clk 0:01:31]} 22. Qf3 {[%clk 0:01:25]}  Ne6 {[%clk 0:01:17]} 23. c3 {[%clk 0:01:12]}  Ndf4 {[%clk 0:01:08]} 24. Bxf4 {[%clk 0:00:41]}  Nxf4 {[%clk 0:01:08]} 25. Qg4 {[%clk 0:00:40]}  Kh8 {[%clk 0:00:57]} 26. d4 {[%clk 0:00:39]}  g6 {[%clk 0:00:53]} 27. Nh6 {[%clk 0:00:25]}  f5 {[%clk 0:00:53]} 28. Qg5 {[%clk 0:00:14]}  fxe4 {[%clk 0:00:53]} 29. dxe5 {[%clk 0:00:14]}  Rf8 {[%clk 0:00:45]} 30. e6 {[%clk 0:00:10]}  Nxe6 {[%clk 0:00:44]} 31. Qh4 {[%clk 0:00:08]}  Rf4 {[%clk 0:00:43]} 32. Qh3 {[%clk 0:00:07]}  Raf8 {[%clk 0:00:43]} 33. g3 {[%clk 0:00:05]}  Rxf2 {[%clk 0:00:41]} 34. Ng4 {[%clk 0:00:05]}  Ng5 {[%clk 0:00:40]} 35. Qh6 {[%clk 0:00:03]}  Qxg4 {[%clk 0:00:38]} 0-1


[Site "https://www.chess.com"]